bitfinex/quotes_BTCUSD_20241023
["timestamp","ask_amount","ask_price","bid_price","bid_amount"]
[1729724156164,1.01545674,66492.0,66491.0,0.001648]
[1729724161433,1.01345674,66492.0,66491.0,0.001648]
[1729724161836,0.90429269,66492.0,66491.0,0.001648]
[1729724162590,0.90229269,66492.0,66491.0,0.001648]
[1729724162747,0.82549269,66492.0,66491.0,0.001648]
[1729724163743,0.82749269,66492.0,66491.0,0.001648]
[1729724164655,0.93865674,66492.0,66491.0,1e-06]
[1729724165042,0.82749269,66492.0,66491.0,1e-06]
[1729724168017,0.82549269,66492.0,66491.0,1e-06]
[1729724168262,0.82749269,66492.0,66491.0,1e-06]
[1729724168473,0.44522483,66492.0,66491.0,1e-06]
[1729724168681,0.55194229,66492.0,66491.0,1e-06]
[1729724170136,0.57494229,66492.0,66491.0,1e-06]
[1729724171412,0.46377824,66492.0,66491.0,1e-06]
[1729724171614,0.57494229,66492.0,66491.0,1e-06]
[1729724176694,0.7254461,66492.0,66491.0,1e-06]
[1729724177097,0.57494229,66492.0,66491.0,1e-06]
[1729724179809,0.57694229,66492.0,66491.0,1e-06]
[1729724180360,0.57494229,66492.0,66491.0,1e-06]
[1729724181897,0.57694229,66492.0,66491.0,1e-06]
[1729724182554,0.57494229,66492.0,66491.0,1e-06]
[1729724183172,0.57576729,66492.0,66491.0,1e-06]
[1729724183602,0.7262711,66492.0,66491.0,1e-06]
[1729724184038,0.7282711,66492.0,66491.0,1e-06]
[1729724184253,0.7262711,66492.0,66491.0,1e-06]
[1729724185266,0.77102213,66492.0,66491.0,1e-06]
[1729724186122,0.7262711,66492.0,66491.0,1e-06]
[1729724186485,0.79339765,66492.0,66491.0,1e-06]
[1729724187047,0.79539765,66492.0,66491.0,1e-06]
[1729724187290,0.89396592,66492.0,66491.0,1e-06]
[1729724188056,0.89196592,66492.0,66491.0,1e-06]
[1729724188249,0.98146799,66492.0,66491.0,1e-06]
[1729724189288,1.02731848,66492.0,66491.0,1e-06]
[1729724190280,1.02931848,66492.0,66491.0,1e-06]
[1729724190779,1.11731641,66492.0,66491.0,1e-06]
[1729724191140,1.03341641,66492.0,66491.0,1e-06]
[1729724191275,1.145294,66492.0,66491.0,1e-06]
[1729724191475,1.03341641,66492.0,66491.0,1e-06]
[1729724192826,1.04898046,66492.0,66491.0,1e-06]
[1729724193033,0.93781641,66492.0,66491.0,1e-06]
[1729724194389,1.07206952,66492.0,66491.0,1e-06]
[1729724195178,0.93781641,66492.0,66491.0,1e-06]
[1729724195582,0.7873126,66492.0,66491.0,1e-06]
[1729724196379,0.7877336,66492.0,66491.0,1e-06]
[1729724201610,0.78975909,66492.0,66491.0,1e-06]
[1729724203519,0.67659504,66492.0,66491.0,1e-06]
[1729724203746,0.78775909,66492.0,66491.0,1e-06]
[1729724204681,0.78975909,66492.0,66491.0,1e-06]
[1729724205430,0.78976968,66492.0,66491.0,1e-06]
[1729724206365,0.78976952,66492.0,66491.0,1e-06]
[1729724207371,0.92480945,66492.0,66491.0,1e-06]
[1729724207582,0.78976952,66492.0,66491.0,1e-06]
[1729724210014,0.78776952,66492.0,66491.0,1e-06]
[1729724210206,0.94027333,66492.0,66491.0,1e-06]
[1729724211383,0.94033223,66492.0,66491.0,1e-06]
[1729724212529,0.93833223,66492.0,66491.0,1e-06]
[1729724213255,0.78782842,66492.0,66491.0,1e-06]
[1729724219090,0.78982842,66492.0,66491.0,1e-06]
[1729724220927,0.78997054,66492.0,66491.0,1e-06]
[1729724224092,0.78987923,66492.0,66491.0,1e-06]
[1729724226041,0.76977146,66492.0,66491.0,1e-06]
[1729724226974,1.09907527,66492.0,66491.0,1e-06]
[1729724227229,0.94857146,66492.0,66491.0,1e-06]
[1729724227474,1.05973551,66492.0,66491.0,1e-06]
[1729724227721,0.94857146,66492.0,66491.0,1e-06]
[1729724228589,1.05973551,66492.0,66491.0,1e-06]
[1729724228818,1.16699544,66492.0,66491.0,1e-06]
[1729724229560,1.16499544,66492.0,66491.0,1e-06]
[1729724229790,1.05383139,66492.0,66491.0,1e-06]
[1729724230027,0.75220741,66492.0,66491.0,1e-06]
[1729724230266,0.75220741,66492.0,66491.0,0.166501]
[1729724230267,0.61869872,66492.0,66491.0,0.166501]
[1729724230501,0.32460044,66492.0,66491.0,0.166501]
[1729724230736,0.56524309,66492.0,66491.0,0.17120531]
[1729724230967,0.67640714,66492.0,66491.0,0.17120531]
[1729724231186,0.67415112,66492.0,66491.0,0.17120531]
[1729724231407,0.4852583,66492.0,66491.0,0.17120531]
[1729724231627,0.47409425,66492.0,66491.0,0.17120531]
[1729724232123,0.4763504,66492.0,66491.0,0.17120531]
[1729724232551,0.43175162,66492.0,66491.0,0.17120531]
[1729724232971,0.42949547,66492.0,66491.0,0.17120531]
[1729724233438,0.47454905,66492.0,66491.0,0.17120531]
[1729724233884,0.47454883,66492.0,66491.0,0.17120531]
[1729724235195,0.47454883,66492.0,66491.0,0.166501]
[1729724235440,0.42949547,66492.0,66491.0,0.166501]
[1729724235669,0.42949547,66492.0,66491.0,0.17120516]
[1729724236528,0.42949547,66492.0,66491.0,0.166501]
[1729724237202,0.54065952,66492.0,66491.0,0.166501]
[1729724238090,0.59071288,66492.0,66491.0,0.166501]
[1729724238326,0.54565952,66492.0,66491.0,0.166501]
[1729724240331,0.59067896,66492.0,66491.0,0.166501]
[1729724240748,0.59067956,66492.0,66491.0,0.166501]
[1729724240951,0.54565952,66492.0,66491.0,0.166501]
[1729724242508,0.59069858,66492.0,66491.0,0.166501]
[1729724248641,0.59068716,66492.0,66491.0,0.166501]
[1729724256176,0.54565952,66492.0,66491.0,0.166501]
[1729724258984,0.54565952,66492.0,66491.0,0.17120537]
[1729724260305,0.54565952,66492.0,66491.0,0.166501]
[1729724260519,0.54565952,66492.0,66491.0,0.17120537]
[1729724263952,0.54565952,66492.0,66491.0,0.17120533]
[1729724264414,0.6132452,66492.0,66491.0,0.17120533]
[1729724266106,0.54565952,66492.0,66491.0,0.17120533]
[1729724267836,0.54565952,66492.0,66491.0,0.17120522]
[1729724269136,0.54565952,66492.0,66491.0,0.17120525]
[1729724272409,0.43449547,66492.0,66491.0,0.17120525]
[1729724275409,0.43449547,66492.0,66491.0,0.166501]
[1729724275663,0.43449547,66492.0,66491.0,0.17120524]
[1729724276562,0.43449547,66492.0,66491.0,0.08090524]
[1729724277507,0.54565952,66492.0,66491.0,0.08090524]
[1729724279342,0.54565952,66492.0,66491.0,0.08090523]
[1729724280581,0.43449547,66492.0,66491.0,0.08090523]
[1729724281397,0.43449547,66492.0,66491.0,0.076201]
[1729724281628,0.43449547,66492.0,66491.0,0.08090514]
[1729724283858,0.69126614,66492.0,66491.0,0.08090514]
[1729724288271,0.68626614,66492.0,66491.0,0.08090514]
[1729724289178,0.68626614,66492.0,66491.0,0.076201]
[1729724289402,0.68626614,66492.0,66491.0,0.08090514]
[1729724300468,0.68626614,66492.0,66491.0,0.076201]
[1729724300703,0.68626614,66492.0,66491.0,0.08090513]
[1729724301167,0.68626614,66492.0,66491.0,0.00470513]
[1729724301621,0.68626614,66492.0,66491.0,0.01223174]
[1729724301836,0.59603513,66492.0,66491.0,0.01223174]
[1729724302039,0.68626614,66492.0,66491.0,0.00470513]
[1729724308630,0.77826614,66492.0,66491.0,0.01223174]
[1729724308866,0.77826614,66492.0,66491.0,1e-06]
[1729724308867,1.00591112,66492.0,66491.0,1e-06]
[1729724309113,0.98846505,66492.0,66491.0,1e-06]
[1729724309321,0.94176627,66492.0,66491.0,1e-06]
[1729724309522,1.09227008,66492.0,66491.0,1e-06]
[1729724310386,1.24428983,66492.0,66491.0,1e-06]
[1729724310565,1.13743697,66492.0,66491.0,1e-06]
[1729724310773,1.13716395,66492.0,66491.0,1e-06]
[1729724310979,1.09782419,66492.0,66491.0,1e-06]
[1729724311191,0.94580681,66492.0,66491.0,1e-06]
[1729724311855,0.83464276,66492.0,66491.0,1e-06]
[1729724312744,0.94580681,66492.0,66491.0,1e-06]
[1729724317247,0.83464276,66492.0,66491.0,1e-06]
[1729724317459,0.83248147,66492.0,66491.0,1e-06]
[1729724318742,0.83448147,66492.0,66491.0,1e-06]
[1729724319224,0.96932972,66492.0,66491.0,1e-06]
[1729724319586,1.11983353,66492.0,66491.0,1e-06]
[1729724320447,1.07403642,66492.0,66491.0,1e-06]
[1729724320655,1.07365726,66492.0,66491.0,1e-06]
[1729724322537,0.93882547,66492.0,66491.0,1e-06]
[1729724322950,1.07365726,66492.0,66491.0,1e-06]
[1729724323151,0.93882547,66492.0,66491.0,1e-06]
[1729724323357,0.78832166,66492.0,66491.0,1e-06]
[1729724325649,0.89948571,66492.0,66491.0,1e-06]
[1729724326086,0.78832166,66492.0,66491.0,1e-06]
[1729724326706,0.89948571,66492.0,66491.0,1e-06]
[1729724326910,0.78832166,66492.0,66491.0,1e-06]
[1729724327120,0.84741648,66492.0,66491.0,1e-06]
[1729724327796,0.95858053,66492.0,66491.0,1e-06]
[1729724328047,0.84741648,66492.0,66491.0,1e-06]
[1729724329313,0.78832166,66492.0,66491.0,1e-06]
[1729724330370,0.78821899,66492.0,66491.0,1e-06]
[1729724332469,0.70851899,66492.0,66491.0,1e-06]
[1729724332685,0.83798229,66492.0,66491.0,1e-06]
[1729724332899,0.72568304,66492.0,66491.0,1e-06]
[1729724333113,0.29307935,66490.0,66489.0,0.001702]
[1729724333340,0.51096663,66490.0,66489.0,0.001702]
[1729724333550,0.70124839,66490.0,66489.0,0.001702]
[1729724333765,0.61140584,66490.0,66489.0,0.001702]
[1729724333981,0.72370903,66490.0,66489.0,0.001702]
[1729724334190,0.61140584,66490.0,66489.0,0.001702]
[1729724334406,0.72370903,66490.0,66489.0,0.001702]
[1729724335052,0.72371345,66490.0,66489.0,0.001702]
[1729724335917,0.61140848,66490.0,66489.0,0.001702]
[1729724336141,0.70195613,66490.0,66489.0,0.001702]
[1729724336572,0.8142611,66490.0,66489.0,0.001702]
[1729724337001,0.81427033,66490.0,66489.0,0.001702]
[1729724337457,0.81427581,66490.0,66489.0,0.001702]
[1729724337868,0.81429821,66490.0,66489.0,0.001702]
[1729724338077,0.72375064,66490.0,66489.0,0.001702]
[1729724338287,0.72375171,66490.0,66489.0,0.001702]
[1729724338695,0.6114306,66490.0,66489.0,0.001702]
[1729724339750,0.7237642,66490.0,66489.0,0.001702]
[1729724340162,0.86499618,66490.0,66489.0,0.001702]
[1729724340363,0.7546622,66490.0,66489.0,0.001702]
[1729724341201,0.8005163,66490.0,66489.0,0.001702]
[1729724345358,0.65730541,66490.0,66489.0,0.001702]
[1729724348381,0.65743025,66490.0,66489.0,0.001702]
[1729724350399,0.79233249,66490.0,66489.0,0.001702]
[1729724351076,0.88823249,66490.0,66489.0,0.001702]
[1729724351292,0.98587214,66490.0,66489.0,0.001702]
[1729724351497,1.13637595,66490.0,66489.0,0.001702]
[1729724353185,1.13661029,66490.0,66489.0,0.001702]
[1729724354297,1.39768643,66490.0,66489.0,0.001702]
[1729724354499,1.24777434,66490.0,66489.0,0.001702]
[1729724354737,1.13661029,66490.0,66489.0,0.001702]
[1729724355185,1.24777434,66490.0,66489.0,0.001702]
[1729724355390,1.13661029,66490.0,66489.0,0.001702]
[1729724355811,1.24777434,66490.0,66489.0,0.001702]
[1729724357729,1.13661029,66490.0,66489.0,0.001702]
[1729724357936,1.13461029,66490.0,66489.0,0.001702]
[1729724359015,1.24777434,66490.0,66489.0,0.001702]
[1729724359236,1.24577434,66490.0,66489.0,1e-06]
[1729724359667,1.24777434,66490.0,66489.0,1e-06]
[1729724361425,1.09527053,66490.0,66489.0,1e-06]
[1729724361636,0.98410648,66490.0,66489.0,1e-06]
[1729724361838,1.09527053,66490.0,66489.0,1e-06]
[1729724362041,0.98410648,66490.0,66489.0,1e-06]
[1729724362254,1.04024048,66490.0,66489.0,1e-06]
[1729724362509,1.00137053,66490.0,66489.0,1e-06]
[1729724362745,1.00171444,66490.0,66489.0,1e-06]
[1729724365260,0.99971444,66490.0,66489.0,1e-06]
[1729724365466,0.99969486,66490.0,66489.0,1e-06]
[1729724367349,1.15019867,66490.0,66489.0,1e-06]
[1729724367598,1.15019013,66490.0,66489.0,1e-06]
[1729724369671,1.15219013,66490.0,66489.0,1e-06]
[1729724375326,1.15019013,66490.0,66489.0,1e-06]
[1729724376757,1.15219013,66490.0,66489.0,1e-06]
[1729724377419,1.15219581,66490.0,66489.0,1e-06]
[1729724377915,1.15019581,66490.0,66489.0,1e-06]
[1729724378376,1.15219581,66490.0,66489.0,1e-06]
[1729724380100,0.999692,66490.0,66489.0,1e-06]
[1729724380313,1.001692,66490.0,66489.0,1e-06]
[1729724382449,1.00173153,66490.0,66489.0,1e-06]
[1729724383580,0.99973153,66490.0,66489.0,1e-06]
[1729724386520,1.00173153,66490.0,66489.0,1e-06]
[1729724386977,1.00055553,66490.0,66489.0,1e-06]
[1729724387233,1.00067302,66490.0,66489.0,1e-06]
[1729724389696,1.03965156,66490.0,66489.0,1e-06]
[1729724390632,1.00067302,66490.0,66489.0,1e-06]
[1729724391274,1.00267302,66490.0,66489.0,1e-06]
[1729724391958,1.00067302,66490.0,66489.0,1e-06]
[1729724394226,1.00267302,66490.0,66489.0,1e-06]
[1729724396701,1.00067302,66490.0,66489.0,1e-06]
[1729724397160,1.00061203,66490.0,66489.0,1e-06]
[1729724397930,1.02510009,66490.0,66489.0,1e-06]
[1729724398391,1.00261203,66490.0,66489.0,1e-06]
[1729724398883,1.00061203,66490.0,66489.0,1e-06]
[1729724399567,0.88944798,66490.0,66489.0,1e-06]
[1729724399795,1.00061203,66490.0,66489.0,1e-06]
[1729724400726,1.00261203,66490.0,66489.0,1e-06]
[1729724404502,1.00061203,66490.0,66489.0,1e-06]
[1729724404733,1.00261203,66490.0,66489.0,1e-06]
[1729724405238,1.48014599,66490.0,66489.0,1e-06]
[1729724405456,1.09503889,66490.0,66489.0,1e-06]
[1729724405668,1.00263889,66490.0,66489.0,1e-06]
[1729724406371,1.15474286,66490.0,66489.0,1e-06]
[1729724407728,1.00263889,66490.0,66489.0,1e-06]
[1729724408621,1.15479733,66490.0,66489.0,1e-06]
[1729724409065,1.00263889,66490.0,66489.0,1e-06]
[1729724413551,1.00063889,66490.0,66489.0,1e-06]
[1729724414804,0.60142531,66490.0,66489.0,1e-06]
[1729724415021,1.00100381,66490.0,66489.0,1e-06]
[1729724415448,0.88983976,66490.0,66489.0,1e-06]
[1729724415682,1.00300381,66490.0,66489.0,1e-06]
[1729724416105,1.00100381,66490.0,66489.0,1e-06]
[1729724416551,1.00300381,66490.0,66489.0,1e-06]
[1729724416760,1.00100381,66490.0,66489.0,1e-06]
[1729724417881,0.87993107,66490.0,66489.0,1e-06]
[1729724418096,0.57798951,66490.0,66489.0,1e-06]
[1729724418307,0.47798951,66490.0,66489.0,1e-06]
[1729724418723,0.58915356,66490.0,66489.0,1e-06]
[1729724419352,0.61215356,66490.0,66489.0,1e-06]
[1729724419559,0.71215356,66490.0,66489.0,1e-06]
[1729724421323,0.60098951,66490.0,66489.0,1e-06]
[1729724421543,0.71215356,66490.0,66489.0,1e-06]
[1729724424180,0.82482502,66490.0,66489.0,1e-06]
[1729724427030,0.97532883,66490.0,66489.0,1e-06]
[1729724427871,0.82482502,66490.0,66489.0,1e-06]
[1729724428091,0.82682502,66490.0,66489.0,1e-06]
[1729724428324,0.71415356,66490.0,66489.0,1e-06]
[1729724428538,0.71215356,66490.0,66489.0,1e-06]
[1729724433931,0.54566252,66490.0,66489.0,1e-06]
[1729724434170,0.71205608,66490.0,66489.0,1e-06]
[1729724434905,0.71405608,66490.0,66489.0,1e-06]
[1729724435132,0.71205608,66490.0,66489.0,1e-06]
[1729724435591,0.71405608,66490.0,66489.0,1e-06]
[1729724435817,0.71205608,66490.0,66489.0,1e-06]
[1729724436054,0.81115608,66490.0,66489.0,1e-06]
[1729724436278,0.81315608,66490.0,66489.0,1e-06]
[1729724436978,0.81115608,66490.0,66489.0,1e-06]
[1729724437420,0.81315608,66490.0,66489.0,1e-06]
[1729724438242,0.81115608,66490.0,66489.0,1e-06]
[1729724438454,0.81315608,66490.0,66489.0,1e-06]
[1729724439078,0.81115608,66490.0,66489.0,1e-06]
[1729724439303,0.71205608,66490.0,66489.0,1e-06]
[1729724441466,1.28984541,66490.0,66489.0,1e-06]
[1729724441700,1.28907506,66490.0,66489.0,1e-06]
[1729724441932,1.17791101,66490.0,66489.0,1e-06]
[1729724442146,1.33004227,66490.0,66489.0,1e-06]
[1729724442394,1.17791101,66490.0,66489.0,1e-06]
[1729724443769,1.17591101,66490.0,66489.0,1e-06]
[1729724444005,0.99090232,66490.0,66489.0,1e-06]
[1729724444252,1.13602365,66490.0,66489.0,1e-06]
[1729724444493,0.90310584,66490.0,66489.0,1e-06]
[1729724444733,1.13602413,66490.0,66489.0,1e-06]
[1729724444995,0.90310584,66490.0,66489.0,1e-06]
[1729724445249,0.04368135,66480.0,66479.0,0.000851]
[1729724445472,0.90052158,66480.0,66479.0,0.000851]
[1729724445708,0.99504773,66480.0,66479.0,0.000851]
[1729724445930,0.75701953,66480.0,66479.0,0.000851]
[1729724446148,0.78079388,66480.0,66479.0,0.000851]
[1729724446611,0.78279388,66480.0,66479.0,0.000851]
[1729724447330,0.91792062,66480.0,66479.0,0.000851]
[1729724447822,0.78279388,66480.0,66479.0,0.000851]
[1729724448051,0.78266666,66480.0,66479.0,0.000851]
[1729724448284,0.75689231,66480.0,66479.0,0.000851]
[1729724448974,0.76132917,66480.0,66479.0,0.000851]
[1729724449451,0.78487836,66480.0,66479.0,0.000851]
[1729724450398,0.76132917,66480.0,66479.0,0.000851]
[1729724450859,0.89638736,66480.0,66479.0,0.000851]
[1729724451292,0.85046755,66480.0,66479.0,0.000851]
[1729724451515,0.89629284,66480.0,66479.0,0.000851]
[1729724451739,0.85044533,66480.0,66479.0,0.000851]
[1729724451966,0.89629433,66480.0,66479.0,0.000851]
[1729724452206,0.85044406,66480.0,66479.0,0.000851]
[1729724453352,0.71540936,66480.0,66479.0,0.000851]
[1729724453581,0.85044406,66480.0,66479.0,0.000851]
[1729724453806,0.85024051,66480.0,66479.0,0.000851]
[1729724454265,0.71524759,66480.0,66479.0,0.000851]
[1729724456288,0.8657514,66480.0,66479.0,0.000851]
[1729724461142,0.86564242,66480.0,66479.0,0.000851]
[1729724462944,0.86564242,66480.0,66479.0,1e-06]
[1729724463610,1.12581842,66480.0,66479.0,1e-06]
[1729724464938,0.84045686,66480.0,66479.0,1e-06]
[1729724465141,0.79463861,66480.0,66479.0,1e-06]
[1729724466399,0.76096054,66480.0,66479.0,1e-06]
[1729724466816,0.71513861,66480.0,66479.0,1e-06]
[1729724471324,0.70378411,66480.0,66479.0,1e-06]
[1729724471540,0.72678411,66480.0,66479.0,1e-06]
[1729724472191,0.77263799,66480.0,66479.0,1e-06]
[1729724472417,0.72678411,66480.0,66479.0,1e-06]
[1729724473130,0.72878411,66480.0,66479.0,1e-06]
[1729724473340,0.72678411,66480.0,66479.0,1e-06]
[1729724473566,0.77265205,66480.0,66479.0,1e-06]
[1729724473782,0.72678411,66480.0,66479.0,1e-06]
[1729724474027,0.60571137,66480.0,66479.0,1e-06]
[1729724474268,0.60571137,66480.0,66479.0,0.099501]
[1729724474269,0.50279734,66480.0,66479.0,0.099501]
[1729724474668,0.4803179,66480.0,66479.0,0.099501]
[1729724475291,0.43534547,66480.0,66479.0,0.099501]
[1729724476601,0.43534547,66480.0,66479.0,0.17999231]
[1729724476602,0.30734547,66480.0,66479.0,0.17999231]
[1729724476815,0.30734547,66480.0,66479.0,0.18700563]
[1729724476816,0.15692447,66480.0,66479.0,0.18700563]
[1729724477227,0.30734547,66480.0,66479.0,0.18700563]
[1729724477903,0.40734547,66480.0,66479.0,0.18700563]
[1729724478124,0.40734547,66480.0,66479.0,0.18469733]
[1729724478336,0.30734547,66480.0,66479.0,0.18469733]
[1729724478555,0.30734547,66480.0,66479.0,0.184697]
[1729724479428,0.30734547,66480.0,66479.0,0.17999231]
[1729724479638,0.30734547,66480.0,66479.0,0.18227795]
[1729724481360,0.30734547,66480.0,66479.0,0.17999231]
[1729724481587,0.30734547,66480.0,66479.0,0.18221931]
[1729724482066,0.30734547,66480.0,66479.0,0.17999231]
[1729724483158,0.30734547,66480.0,66479.0,0.18221931]
[1729724500488,0.30734547,66480.0,66479.0,0.18692398]
[1729724501162,0.30734547,66480.0,66479.0,0.18221931]
[1729724501405,0.30734547,66480.0,66479.0,0.18692398]
[1729724505361,0.30734547,66480.0,66479.0,0.19445146]
[1729724512245,0.30734547,66480.0,66479.0,0.19445114]
[1729724512461,0.30734547,66480.0,66479.0,0.18221931]
[1729724512692,0.30734547,66480.0,66479.0,0.19445114]
[1729724516366,2.73724447,66480.0,66479.0,0.19445114]
[1729724518565,2.73724447,66480.0,66479.0,0.19222414]
[1729724518984,2.73724447,66480.0,66479.0,0.1944226]
[1729724520428,2.73724447,66480.0,66479.0,0.2019516]
[1729724521347,2.58682347,66480.0,66479.0,0.2019516]
[1729724521750,2.73724447,66480.0,66479.0,0.2019516]
[1729724522083,2.73724447,66480.0,66479.0,0.18971977]
[1729724522283,2.73724447,66480.0,66479.0,0.2019516]
[1729724522502,2.73724447,66480.0,66479.0,0.19442432]
[1729724522709,2.73724447,66480.0,66479.0,0.2019516]
[1729724523513,2.73724447,66480.0,66479.0,0.19975314]
[1729724523720,2.73724447,66480.0,66479.0,0.2019516]
[1729724524358,2.73724447,66480.0,66479.0,0.19975314]
[1729724524572,2.73724447,66480.0,66479.0,0.2019516]
[1729724525213,2.58682347,66480.0,66479.0,0.31311565]
[1729724525672,2.58682347,66480.0,66479.0,0.31091719]
[1729724525856,2.58682347,66480.0,66479.0,0.31311565]
[1729724526273,2.73724447,66480.0,66479.0,0.31311565]
[1729724527648,2.58682347,66480.0,66479.0,0.31311565]
[1729724527821,2.73724447,66480.0,66479.0,0.31311565]
[1729724528811,2.58682347,66480.0,66479.0,0.31311565]
[1729724529213,2.58682347,66480.0,66479.0,0.31091719]
[1729724529425,2.73724447,66480.0,66479.0,0.31091719]
[1729724529627,2.73724447,66480.0,66479.0,0.313113]
[1729724529835,2.58682347,66480.0,66479.0,0.31311298]
[1729724530461,2.73724447,66480.0,66479.0,0.31311298]
[1729724530860,2.58682347,66480.0,66479.0,0.31311298]
[1729724531089,2.73724447,66480.0,66479.0,0.31311298]
[1729724531521,2.73724447,66480.0,66479.0,0.31091717]
[1729724532000,2.73724447,66480.0,66479.0,0.31311298]
[1729724533760,2.73724447,66480.0,66479.0,0.30088117]
[1729724533977,2.73724447,66480.0,66479.0,0.31311257]
[1729724534193,2.73724447,66480.0,66479.0,0.32063959]
[1729724534415,2.58682347,66480.0,66479.0,0.32063959]
[1729724534598,2.73724447,66480.0,66479.0,0.31311257]
[1729724536940,2.73724447,66480.0,66479.0,0.31091676]
[1729724537780,2.58682347,66480.0,66479.0,0.31091676]
[1729724537985,2.73724447,66480.0,66479.0,0.31091676]
[1729724538199,2.58682347,66480.0,66479.0,0.13321257]
[1729724538419,2.73724447,66480.0,66479.0,0.02204852]
[1729724538635,2.73724447,66480.0,66479.0,0.01985271]
[1729724540888,2.58682347,66480.0,66479.0,0.01985271]
[1729724541179,2.73724447,66480.0,66479.0,0.01985271]
[1729724541647,2.73724447,66480.0,66479.0,0.01985307]
[1729724553854,2.58682347,66480.0,66479.0,0.01985307]
[1729724554768,2.73724447,66480.0,66479.0,0.01985307]
[1729724556309,2.73724447,66480.0,66479.0,0.00762131]
[1729724556537,2.73724447,66480.0,66479.0,0.01985304]
[1729724556763,2.73724447,66480.0,66479.0,0.01232583]
[1729724557182,2.73724447,66480.0,66479.0,0.01985306]
[1729724557871,2.58682347,66480.0,66479.0,0.01985306]
[1729724558111,2.73724447,66480.0,66479.0,0.01985306]
[1729724560025,2.73724447,66480.0,66479.0,0.00762131]
[1729724560279,2.73724447,66480.0,66479.0,0.01985306]
[1729724563746,2.73724447,66480.0,66479.0,0.00762131]
[1729724563957,2.73724447,66480.0,66479.0,0.01985307]
[1729724565434,2.58682347,66480.0,66479.0,0.01985307]
[1729724565658,2.73724447,66480.0,66479.0,0.01985307]
[1729724565880,2.58682347,66480.0,66479.0,0.01985307]
[1729724566101,2.73724447,66480.0,66479.0,0.01985307]
[1729724566339,2.73724447,66480.0,66479.0,0.02204721]
[1729724566572,2.73724447,66480.0,66479.0,0.01985307]
[1729724567679,2.73724447,66480.0,66479.0,0.00762131]
[1729724567897,2.73724447,66480.0,66479.0,0.01985304]
[1729724569390,2.58682347,66480.0,66479.0,0.01985304]
[1729724569605,2.73724447,66480.0,66479.0,0.01985304]
[1729724575441,2.73724447,66480.0,66479.0,0.01232582]
[1729724575619,2.73724447,66480.0,66479.0,0.00762131]
[1729724576118,2.58682347,66480.0,66479.0,0.00762131]
[1729724576322,2.73724447,66480.0,66479.0,0.01514853]
[1729724576543,2.73724447,66480.0,66479.0,0.01734267]
[1729724576779,2.73724447,66480.0,66479.0,0.01514853]
[1729724577007,2.73724447,66480.0,66479.0,0.01985304]
[1729724579803,2.73724447,66480.0,66479.0,0.00981545]
[1729724580013,2.73724447,66480.0,66479.0,0.01232582]
[1729724580223,2.73724447,66480.0,66479.0,0.01985304]
[1729724580434,2.58682347,66480.0,66479.0,0.01985304]
[1729724580671,2.73724447,66480.0,66479.0,0.02204718]
[1729724581117,2.73724447,66480.0,66479.0,0.01985304]
[1729724581523,2.58682347,66480.0,66479.0,0.01985304]
[1729724581729,2.73724447,66480.0,66479.0,0.01985304]
[1729724581973,2.431547,66480.0,66479.0,0.57280414]
[1729724582460,2.431547,66480.0,66479.0,0.67049051]
[1729724582669,2.38451112,66480.0,66479.0,0.67249051]
[1729724582879,2.38451112,66480.0,66479.0,0.67238662]
[1729724583092,2.38451112,66480.0,66479.0,0.58221111]
[1729724583320,2.38451112,66480.0,66479.0,0.67233679]
[1729724583531,2.38451112,66480.0,66479.0,0.67033679]
[1729724583771,2.38451112,66480.0,66479.0,0.58021111]
[1729724584398,2.38451112,66480.0,66479.0,0.67029376]
[1729724584894,2.38451112,66480.0,66479.0,0.67467682]
[1729724585313,2.38451112,66480.0,66479.0,0.58459579]
[1729724586260,2.38451112,66480.0,66479.0,0.65211801]
[1729724587344,2.38451112,66480.0,66479.0,0.58707396]
[1729724589283,2.38451112,66480.0,66479.0,0.63206327]
[1729724589756,2.38451112,66480.0,66479.0,0.6198325]
[1729724589972,2.38451112,66480.0,66479.0,0.63206103]
[1729724591282,2.38451112,66480.0,66479.0,0.58707172]
[1729724591505,2.38451112,66480.0,66479.0,0.58459441]
[1729724591957,2.38451112,66480.0,66479.0,0.58707172]
[1729724592375,2.38451112,66480.0,66479.0,0.58459441]
[1729724592595,2.38615912,66480.0,66479.0,0.58459441]
[1729724592819,2.38615912,66480.0,66479.0,0.62956452]
[1729724593557,1.89524192,66480.0,66479.0,0.94826227]
[1729724593771,1.69691937,66480.0,66479.0,1.01568509]
[1729724594017,1.69691937,66480.0,66479.0,0.94826227]
[1729724594261,1.69691937,66480.0,66479.0,1.06068754]
[1729724594476,1.69691937,66480.0,66479.0,0.94826227]
[1729724594698,1.66683537,66480.0,66479.0,1.06054596]
[1729724595412,1.57658337,66480.0,66479.0,0.94826227]
[1729724595648,1.54649937,66480.0,66479.0,0.94826227]
[1729724596334,1.45624737,66480.0,66479.0,1.0380141]
[1729724596557,0.93524617,66480.0,66479.0,0.94826227]
[1729724596767,0.93524617,66480.0,66479.0,1.0380141]
[1729724596768,0.87507817,66480.0,66479.0,1.0380141]
[1729724596978,0.87507817,66480.0,66479.0,1.0610141]
[1729724596979,0.08229598,66480.0,66479.0,1.0610141]
[1729724597206,0.08229598,66480.0,66479.0,0.98247556]
[1729724597415,0.08229598,66480.0,66479.0,1.07469617]
[1729724597623,0.02212798,66480.0,66479.0,1.07222305]
[1729724597826,9.8e-07,66480.0,66479.0,1.07222305]
[1729724598271,9.8e-07,66480.0,66479.0,0.98247556]
[1729724598958,9.8e-07,66480.0,66479.0,1.01259556]
[1729724599365,0.000824,66490.0,66489.0,0.01231865]
[1729724599576,0.000824,66490.0,66489.0,0.83759238]
[1729724599798,0.000824,66490.0,66489.0,0.88027766]
[1729724600232,0.000824,66490.0,66489.0,0.86906437]
[1729724600456,0.000824,66490.0,66489.0,0.88026641]
[1729724600662,0.000824,66490.0,66489.0,0.88026666]
[1729724601991,0.000824,66490.0,66489.0,0.86906084]
[1729724602219,0.000824,66490.0,66489.0,0.88026308]
[1729724603334,0.22595636,66514.0,66495.0,0.01231865]
[1729724603541,0.01727266,66519.0,66518.0,0.15542631]
[1729724603542,0.0125,66519.0,66518.0,0.15542631]
[1729724603758,0.0125,66519.0,66518.0,0.27129228]
[1729724603979,0.0125,66519.0,66518.0,0.38446813]
[1729724604229,0.0125,66519.0,66518.0,0.39566427]
[1729724604905,0.0125,66519.0,66518.0,0.17333617]
[1729724605118,0.1834,66519.0,66518.0,0.01180503]
[1729724605346,0.1834,66519.0,66518.0,0.16714003]
[1729724605568,0.1834,66519.0,66518.0,0.01180503]
[1729724605786,0.1834,66519.0,66518.0,0.16214003]
[1729724606643,0.29456405,66519.0,66518.0,0.16214003]